fUSD/lending_fUSD_20260401
["ID","MTS","AMOUNT","RATE_DAILY","PERIOD"]
[419224005,1775023900128,-3000.0,0.0004,7]
[419224006,1775023900138,-163.07805032,0.0004,2]
[419224007,1775023900147,-10781.6193926,0.0004,2]
[419224008,1775023900155,-3178.15035166,0.0004,120]
[419224009,1775023900164,-523.77353451,0.0004,120]
[419224010,1775023900173,-3649.08393979,0.0004,120]
[419224011,1775023900182,-240.26326392,0.0004,120]
[419224012,1775023900190,-803.83521798,0.0004,2]
[419224013,1775023900199,-476.04345848,0.0004,120]
[419224014,1775023900208,-439.5391843,0.0004,30]
[419224015,1775023900217,-38574.11717272,0.0004,30]
[419224016,1775023900228,-505.0,0.0004,30]
[419224017,1775023900505,-868.12832127,0.00032582,2]
[419224018,1775023900664,3644.05973924,8.735e-05,2]
[419224019,1775023900876,-317.37442403,0.00010062,2]
[419224020,1775023900885,-317.37442403,0.00011072,2]
[419224021,1775023900895,-150.0,0.00013973,2]
[419224022,1775023900904,-150.0,0.00014247,2]
[419224023,1775023900914,-1600.87167873,0.00032582,2]
[419224024,1775023900924,-299.04270032,0.000327,2]
[419224025,1775023900933,-2469.0,0.00035582,2]
[419224026,1775023900942,-391.549,0.00038582,2]
[419224027,1775023900951,-15.69607555,0.00039726,120]
[419224028,1775023900963,-218.25568145,0.00039726,120]
[419224029,1775023900973,-1837.319904,0.00039726,120]
[419224030,1775023900982,-422.676841,0.00039726,60]
[419224031,1775023900991,-1837.319904,0.00039726,120]
[419224032,1775023901001,-233.951757,0.00039726,120]
[419224033,1775023901010,-422.676841,0.00039726,60]
[419224034,1775023901020,-128.73506982,0.00039726,120]
[419224035,1775023901032,-1036.94153083,0.00039726,120]
[419224036,1775023901043,-671.64330335,0.00039726,120]
[419224037,1775023901052,-233.951757,0.00039726,120]
[419224038,1775023901061,-422.676841,0.00039726,60]
[419224039,1775023901071,-1837.319904,0.00039726,120]
[419224040,1775023901080,-233.951757,0.00039726,120]
[419224041,1775023901089,-422.676841,0.00039726,60]
[419224042,1775023901098,-1837.319904,0.00039726,120]
[419224043,1775023901107,-233.951757,0.00039726,120]
[419224044,1775023901118,-422.676841,0.00039726,60]
[419224045,1775023901127,-8676.58413837,0.0004,30]
[419224046,1775023901138,-10382.28291694,0.0004,30]
[419224047,1775023901148,-296.01577197,0.0004,30]
[419224048,1775023901158,-202.17,0.0004,10]
[419224049,1775023901167,-27980.39,0.0004,30]
[419224050,1775023901176,-160.0,0.0004,10]
[419224051,1775023901185,-154.0,0.0004,120]
[419224052,1775023901194,-2142.0,0.0004,120]
[419224053,1775023901203,-5800.0,0.0004,14]
[419224054,1775023901212,-390.0,0.0004,120]
[419224055,1775023901221,-993.10976,0.0004,30]
[419224056,1775023901230,-2325.2,0.0004,2]
[419224057,1775023901239,-2000.0,0.0004,2]
[419224058,1775023901249,-2000.0,0.0004,2]
[419224059,1775023901258,-150.0,0.0004,120]
[419224060,1775023901267,-160.0,0.0004,3]
[419224061,1775023901278,-160.0,0.0004,3]
[419224062,1775023901287,-2000.0,0.0004,2]
[419224063,1775023901296,-350.0,0.0004,120]
[419224064,1775023901305,-151.0,0.0004,120]
[419224065,1775023901314,-157.270965,0.0004,30]
[419224066,1775023901323,-151.0,0.0004,120]
[419224067,1775023901333,-151.0,0.0004,120]
[419224068,1775023901343,-157.270965,0.0004,30]
[419224069,1775023901352,-151.0,0.0004,120]
[419224070,1775023901361,-237.670188,0.0004,120]
[419224071,1775023901370,-157.270965,0.0004,30]
[419224072,1775023901379,-157.270965,0.0004,30]
[419224073,1775023901389,-151.0,0.0004,120]
[419224074,1775023901398,-151.0,0.0004,120]
[419224075,1775023901407,-151.0,0.0004,120]
[419224076,1775023901416,-151.0,0.0004,120]
[419224077,1775023901426,-151.0,0.0004,120]
[419224078,1775023901435,-231.496443,0.0004,120]
[419224079,1775023901444,-151.0,0.0004,120]
[419224080,1775023901453,-219.938856,0.0004,120]
[419224081,1775023901462,-151.0,0.0004,120]
[419224082,1775023901471,-151.0,0.0004,120]
[419224083,1775023901480,-168.463139,0.0004,120]
[419224084,1775023901489,-168.463139,0.0004,120]
[419224085,1775023901499,-168.463139,0.0004,120]
[419224086,1775023901510,-168.463139,0.0004,120]
[419224087,1775023901520,-151.0,0.0004,14]
[419224088,1775023901530,-151.0,0.0004,14]
[419224089,1775023901539,-1905.45,0.0004,120]
[419224090,1775023901549,-160.0,0.0004,7]
[419224091,1775023901558,-7252.86,0.0004,120]
[419224092,1775023901567,-2500.0,0.0004,120]
[419224093,1775023901576,-4069.01,0.0004,120]
[419224094,1775023901585,-4725.7,0.0004,120]
[419224095,1775023901594,-2500.0,0.0004,120]
[419224096,1775023901603,-249.645465,0.0004,120]
[419224097,1775023901612,-249.645465,0.0004,120]
[419224098,1775023901621,-249.645465,0.0004,120]
[419224099,1775023901631,-151.0,0.0004,120]
[419224100,1775023901642,-151.0,0.0004,120]
[419224101,1775023901651,-398.289537,0.0004,120]
[419224102,1775023901660,-249.645469,0.0004,120]
[419224103,1775023901670,-66.78118755,0.0004,120]
[419224104,1775023901690,-84.21881245,0.0004,120]
[419224105,1775023901699,-151.0,0.0004,120]
[419224106,1775023901709,-178.44039,0.0004,120]
[419224107,1775023901718,-151.0,0.0004,120]
[419224108,1775023901727,-151.0,0.0004,120]
[419224109,1775023901735,-276.25301378,0.0004,120]
[419224110,1775023901746,-589.47107122,0.0004,120]
[419224111,1775023901755,-178.44039,0.0004,120]
[419224112,1775023901765,-151.0,0.0004,120]
[419224113,1775023901775,-151.0,0.0004,120]
[419224114,1775023901784,-865.724085,0.0004,120]
[419224115,1775023901793,-178.44039,0.0004,120]
[419224116,1775023901803,-151.0,0.0004,120]
[419224117,1775023901812,-865.724085,0.0004,120]
[419224118,1775023901822,-178.44039,0.0004,120]
[419224119,1775023901833,-418.465845,0.0004,120]
[419224120,1775023901843,-151.0,0.0004,120]
[419224121,1775023901853,-865.724089,0.0004,120]
[419224122,1775023901863,-418.465845,0.0004,120]
[419224123,1775023901872,-152.910508,0.0004,120]
[419224124,1775023901880,-418.465845,0.0004,120]
[419224125,1775023901889,-398.289537,0.0004,120]
[419224126,1775023901898,-152.910508,0.0004,120]
[419224127,1775023901907,-91.8201557,0.0004,120]
[419224128,1775023901934,-59.1798443,0.0004,120]
[419224129,1775023901944,-398.289537,0.0004,120]
[419224130,1775023901952,-418.465853,0.0004,120]
[419224131,1775023901961,-152.910508,0.0004,120]
[419224132,1775023901971,-151.0,0.0004,120]
[419224133,1775023901981,-3.76519638,0.0004,120]
[419224134,1775023902031,-1837.319897,0.00039726,120]
[419224135,1775023902040,-233.951757,0.00039726,120]
[419224136,1775023902049,-422.676841,0.00039726,60]
[419224137,1775023902058,-394.52433462,0.0004,120]
[419224138,1775023902068,-152.910515,0.0004,120]
[419224139,1775023902077,-597.497225,0.0004,30]
[419224140,1775023902086,-597.497225,0.0004,30]
[419224141,1775023902095,-597.497225,0.0004,30]
[419224142,1775023902104,-597.497227,0.0004,30]
[419224143,1775023902113,-2106.990483,0.0004,120]
[419224144,1775023902122,-2106.990483,0.0004,120]
[419224145,1775023902131,-2106.990483,0.0004,120]
[419224146,1775023902140,-1188.21279419,0.0004,120]
[419224147,1775023902151,-918.77768881,0.0004,120]
[419224148,1775023902161,-255.663514,0.0004,120]
[419224149,1775023902170,-151.0,0.0004,120]
[419224150,1775023902179,-255.663514,0.0004,120]
[419224151,1775023902188,-151.0,0.0004,120]
[419224152,1775023902198,-151.0,0.0004,120]
[419224153,1775023902207,-75.64365439,0.0004,120]
[419224154,1775023902219,-180.01985961,0.0004,120]
[419224155,1775023902228,-151.0,0.0004,120]
[419224156,1775023902237,-255.663508,0.0004,120]
[419224157,1775023902248,-151.0,0.0004,120]
[419224158,1775023902258,-151.0,0.0004,120]
[419224159,1775023902269,-151.0,0.0004,120]
[419224160,1775023902279,-155.969103,0.0004,120]
[419224161,1775023902289,-201.137594,0.0004,120]
[419224162,1775023902299,-201.137594,0.0004,120]
[419224163,1775023902308,-201.137594,0.0004,120]
[419224164,1775023902318,-123.41260933,0.0004,120]
[419224165,1775023902330,-77.72498667,0.0004,120]
[419224166,1775023902339,-263.046408,0.0004,120]
[419224167,1775023902348,-390.14726,0.0004,120]
[419224168,1775023902359,-263.046408,0.0004,120]
[419224169,1775023902368,-390.14726,0.0004,120]
[419224170,1775023902378,-263.046408,0.0004,120]
[419224171,1775023902388,-390.14726,0.0004,120]
[419224172,1775023902398,-263.046413,0.0004,120]
[419224173,1775023902407,-390.147252,0.0004,120]
[419224174,1775023902416,-152.754954,0.0004,120]
[419224175,1775023902426,-152.754954,0.0004,120]
[419224176,1775023902435,-152.754954,0.0004,120]
[419224177,1775023902446,-152.754955,0.0004,120]
[419224178,1775023902455,-3276.685982,0.0004,120]
[419224179,1775023902464,-2467.99502339,0.0004,120]
[419224180,1775023902475,-808.69095861,0.0004,120]
[419224181,1775023902484,-493.47426552,0.0004,120]
[419224182,1775023902496,-1433.74969613,0.0004,120]
[419224183,1775023902569,6355.95026076,8.378e-05,2]
[419224184,1775023902593,8521.78973924,8.378e-05,2]
[419224185,1775023902793,270.0,8.378e-05,2]
[419224186,1775023903125,-150.0,0.00013699,2]
[419224187,1775023903135,-150.0,0.00013973,2]
[419224188,1775023903146,-363.55176446,0.0002,30]
[419224189,1775023903212,-91.28823554,0.0002,30]
[419224190,1775023903223,-454.84,0.00022438,30]
[419224191,1775023903234,-169.3590917,0.00023976,2]
[419224192,1775023903245,-359.5698548,0.00023976,2]
[419224193,1775023903255,-930.95413237,0.0002448,2]
[419224194,1775023903265,-454.84,0.00024876,60]
[419224195,1775023903908,-1524.0,0.000249,2]
[419224196,1775023903932,-454.84,0.00027313,60]
[419224197,1775023903942,-233.951757,0.00039726,120]
[419224198,1775023903952,-422.676841,0.00039726,60]
[419224199,1775023903962,-233.951763,0.00039726,120]
[419224200,1775023903971,-422.676841,0.00039726,60]
[419224201,1775023903981,-1057.162612,0.00039726,120]
[419224202,1775023903991,-422.676841,0.00039726,60]
[419224203,1775023904001,-1057.162612,0.00039726,120]
[419224204,1775023904011,-422.676841,0.00039726,60]
[419224205,1775023904021,-422.676841,0.00039726,60]
[419224206,1775023904032,-1057.162612,0.00039726,120]
[419224207,1775023904042,-422.676841,0.00039726,60]
[419224208,1775023904052,-44.55519349,0.00039726,120]
[419224209,1775023904073,-1012.60741851,0.00039726,120]
[419224210,1775023904082,-422.676841,0.00039726,60]
[419224211,1775023904093,-1057.162612,0.00039726,120]
[419224212,1775023904103,-1349.46202035,0.0004,120]
[419224213,1775023904112,-283.391457,0.0004,120]
[419224214,1775023904122,-3276.685988,0.0004,120]
[419224215,1775023904132,-283.391457,0.0004,120]
[419224216,1775023904141,-283.391457,0.0004,120]
[419224217,1775023904150,-283.391459,0.0004,120]
[419224218,1775023904161,-151.0,0.0004,120]
[419224219,1775023904171,-485.941108,0.0004,120]
[419224220,1775023904181,-151.0,0.0004,120]
[419224221,1775023904191,-177.300024,0.0004,120]
[419224222,1775023904201,-485.941108,0.0004,120]
[419224223,1775023904211,-151.0,0.0004,120]
[419224224,1775023904220,-177.300024,0.0004,120]
[419224225,1775023904230,-485.941108,0.0004,120]
[419224226,1775023904239,-177.300024,0.0004,120]
[419224227,1775023904249,-485.941112,0.0004,120]
[419224228,1775023904258,-177.300023,0.0004,120]
[419224229,1775023904267,-1663.408312,0.0004,120]
[419224230,1775023904277,-1663.408312,0.0004,120]
[419224231,1775023904287,-1663.408312,0.0004,120]
[419224232,1775023904296,-1663.408315,0.0004,120]
[419224233,1775023904306,-266.850709,0.0004,120]
[419224234,1775023904316,-266.850709,0.0004,120]
[419224235,1775023904326,-266.850709,0.0004,120]
[419224236,1775023904336,-266.850713,0.0004,120]
[419224237,1775023904345,-962.0,0.0004,120]
[419224238,1775023904355,-961.0,0.0004,120]
[419224239,1775023904366,-961.0,0.0004,120]
[419224240,1775023904376,-961.0,0.0004,120]
[419224241,1775023904386,-961.0,0.0004,120]
[419224242,1775023904395,-961.0,0.0004,120]
[419224243,1775023904405,-151.0,0.0004,120]
[419224244,1775023904415,-1736.096161,0.0004,120]
[419224245,1775023904424,-151.0,0.0004,120]
[419224246,1775023904433,-583.935786,0.0004,120]
[419224247,1775023904442,-1736.096161,0.0004,120]
[419224248,1775023904452,-215.581188,0.0004,120]
[419224249,1775023904461,-583.935786,0.0004,120]
[419224250,1775023904471,-151.0,0.0004,120]
[419224251,1775023904480,-1736.096161,0.0004,120]
[419224252,1775023904490,-583.935786,0.0004,120]
[419224253,1775023904499,-151.0,0.0004,120]
[419224254,1775023904508,-1736.09616883,0.0004,120]
[419224255,1775023904518,-583.935796,0.0004,120]
[419224256,1775023904528,-644.599907,0.0004,120]
[419224257,1775023904537,-644.599907,0.0004,120]
[419224258,1775023904548,-741.356026,0.0004,120]
[419224259,1775023904557,-644.599907,0.0004,120]
[419224260,1775023904567,-741.356026,0.0004,120]
[419224261,1775023904576,-644.599911,0.0004,120]
[419224262,1775023904586,-741.356026,0.0004,120]
[419224263,1775023904595,-1445.817213,0.0004,120]
[419224264,1775023904605,-741.35603,0.0004,120]
[419224265,1775023904615,-1888.020243,0.0004,120]
[419224266,1775023904624,-1445.817213,0.0004,120]
[419224267,1775023904634,-1888.020243,0.0004,120]
[419224268,1775023904643,-1445.817213,0.0004,120]
[419224269,1775023904653,-1888.020243,0.0004,120]
[419224270,1775023904662,-1445.817218,0.0004,120]
[419224271,1775023904672,-1888.020244,0.0004,120]
[419224272,1775023904682,-1045.235566,0.0004,120]
[419224273,1775023904692,-1045.235566,0.0004,120]
[419224274,1775023904701,-1045.235566,0.0004,120]
[419224275,1775023904710,-1045.23557,0.0004,120]
[419224276,1775023904719,-2309.644453,0.0004,120]
[419224277,1775023904727,-488.566462,0.0004,120]
[419224278,1775023904737,-161.577171,0.0004,120]
[419224279,1775023904746,-2309.644453,0.0004,120]
[419224280,1775023904755,-488.566462,0.0004,120]
[419224281,1775023904765,-299.750175,0.0004,120]
[419224282,1775023904775,-1685.564741,0.0004,120]
[419224283,1775023904784,-161.577171,0.0004,120]
[419224284,1775023904794,-2309.644453,0.0004,120]
[419224285,1775023904803,-488.566462,0.0004,120]
[419224286,1775023904813,-63.96888588,0.0004,120]
[419224287,1775023907404,5000.0,8.378e-05,2]
[419224288,1775023908103,-5000.0,8.592e-05,2]
[419224289,1775023908251,-5000.0,8.592e-05,2]
[419224290,1775023908313,-5000.0,8.592e-05,2]
[419224291,1775023908381,-500.0,8.734e-05,2]
[419224292,1775023908412,-412.87835981,8.734e-05,2]
[419224293,1775023908447,-500.0,8.734e-05,2]
[419224294,1775023908481,-500.0,8.734e-05,2]
[419224295,1775023908515,-500.0,8.734e-05,2]
[419224296,1775023908547,-500.0,8.734e-05,2]
[419224297,1775023908582,-500.0,8.734e-05,2]
[419224298,1775023908615,-500.0,8.734e-05,2]
[419224299,1775023908650,-500.0,8.734e-05,2]
[419224300,1775023908683,-500.0,8.734e-05,2]
[419224301,1775023908728,-400.0,8.734e-05,2]
[419224302,1775023908760,-500.0,8.734e-05,2]
[419224303,1775023909154,252.84082214,8.734e-05,2]
[419224304,1775023911034,500.0,8.734e-05,2]
[419224305,1775023911069,500.0,8.734e-05,2]
[419224306,1775023911104,500.0,8.734e-05,2]
[419224307,1775023911137,500.0,8.734e-05,2]
[419224308,1775023911180,208.47975203,8.734e-05,2]
[419224309,1775023911209,150.0,8.734e-05,2]
[419224310,1775023911493,751.23,8.208e-05,2]
[419224311,1775023911951,500.0,8.734e-05,2]
[419224312,1775023911984,500.0,8.734e-05,2]
[419224313,1775023912017,350.00000001,8.734e-05,2]
[419224314,1775023912276,267.0,8.208e-05,2]
[419224315,1775023916719,500.0,8.734e-05,2]
[419224316,1775023922448,150.0,8.734e-05,2]
[419224317,1775023928544,151.0,8.732e-05,2]
[419224318,1775023951592,986.2,8.021e-05,2]
[419224319,1775023952130,715.63,8.113e-05,2]
[419224320,1775023952647,640.64,8.441e-05,2]
[419224321,1775023953212,560.0,8.677e-05,2]
[419224326,1775024017900,431.2,8.462e-05,2]
[419224327,1775024035371,1200.0,8.734e-05,2]
[419224328,1775024041642,300.0,8.734e-05,2]
[419224329,1775024078771,2435.5498,8.635e-05,2]
[419224330,1775024101131,300.0,8.734e-05,2]
[419224331,1775024101448,1200.0,8.734e-05,2]
[419224332,1775024102868,150.0,8.734e-05,2]
[419224333,1775024105844,279.7902,8.734e-05,2]
[419224334,1775024105867,67.83872565,8.734e-05,2]
[419224335,1775024118964,500.0,8.734e-05,2]
[419224336,1775024119001,500.0,8.734e-05,2]
[419224337,1775024119039,500.0,8.734e-05,2]
[419224338,1775024119091,500.0,8.734e-05,2]
[419224339,1775024119129,500.0,8.734e-05,2]
[419224340,1775024119191,500.0,8.734e-05,2]
[419224341,1775024119230,500.0,8.734e-05,2]
[419224342,1775024119276,500.0,8.734e-05,2]
[419224343,1775024119314,500.0,8.734e-05,2]
[419224344,1775024119356,500.0,8.734e-05,2]
[419224345,1775024119394,500.0,8.734e-05,2]
[419224346,1775024119441,500.0,8.734e-05,2]
[419224347,1775024119479,500.0,8.734e-05,2]
[419224348,1775024119516,500.0,8.734e-05,2]
[419224349,1775024119563,500.0,8.734e-05,2]
[419224350,1775024119599,354.41914498,8.734e-05,2]
[419224351,1775024119659,500.0,8.734e-05,2]
[419224352,1775024119695,500.0,8.734e-05,2]
[419224353,1775024123079,151.0,8.732e-05,2]
[419224354,1775024123807,151.0,8.732e-05,2]
[419224355,1775024152036,353.93043564,8.734e-05,2]
[419224356,1775024172226,421.82169373,8.635e-05,2]
[419224357,1775024172249,78.17830627,8.635e-05,2]
[419224361,1775024202354,657.18,8.328e-05,2]
[419224362,1775024263885,1480.0,8.106e-05,2]
[419224363,1775024264712,692.0,8.225e-05,2]
[419224364,1775024265233,1500.0,8.234e-05,2]
[419224365,1775024265747,1030.0,8.275e-05,2]
[419224366,1775024266270,737.5,8.425e-05,2]
[419224367,1775024266805,1700.0,8.413e-05,2]
[419224368,1775024267315,1640.0,8.556e-05,2]
[419224369,1775024267842,485.15169373,8.64e-05,2]
[419224370,1775024267866,214.84830627,8.64e-05,2]
[419224371,1775024268547,1800.0,8.641e-05,2]
[419224372,1775024268868,1200.0,8.718e-05,2]
[419224373,1775024281322,300.0,8.734e-05,2]
[419224374,1775024282523,150.0,8.734e-05,2]
[419224375,1775024285772,5000.0,8.734e-05,2]
[419224376,1775024305530,1335.16169373,8.69e-05,2]
[419224377,1775024305552,10000.01,8.69e-05,2]
[419224378,1775024305575,10000.01,8.69e-05,2]
[419224379,1775024305596,10000.01,8.69e-05,2]
[419224380,1775024305618,1554.11458127,8.69e-05,2]
[419224381,1775024333588,1200.0,8.734e-05,2]
[419224382,1775024335755,1070.0,8.485e-05,2]
[419224383,1775024336792,2912.85619731,8.635e-05,2]
[419224384,1775024363434,200.0,8.6e-05,2]
[419224385,1775024401532,300.0,8.734e-05,2]
[419224386,1775024401565,300.0,8.734e-05,2]
[419224387,1775024401628,300.0,8.734e-05,2]
[419224388,1775024401663,1200.0,8.734e-05,2]
[419224392,1775024461533,300.0,8.734e-05,2]
[419224393,1775024461966,300.0,8.734e-05,2]
[419224394,1775024462163,855.5,8.538e-05,2]
[419224395,1775024462723,150.0,8.734e-05,2]
[419224396,1775024488155,911.65380269,8.56e-05,2]
[419224397,1775024488180,1321.87019731,8.56e-05,2]
[419224398,1775024488236,178.229,8.56e-05,2]
[419224399,1775024505115,150.0,8.734e-05,2]
[419224401,1775024521422,300.0,8.734e-05,2]
[419224402,1775024523742,889.65,8.458e-05,2]
[419224403,1775024528431,500.0,8.734e-05,2]
[419224404,1775024545738,500.0,8.734e-05,2]
[419224405,1775024568247,304.67125952,8.734e-05,2]
[419224406,1775024581161,300.0,8.734e-05,2]
[419224407,1775024585649,570.24917565,8.734e-05,2]
[419224409,1775024597541,500.0,8.734e-05,2]
[419224410,1775024620119,500.0,8.734e-05,2]
[419224411,1775024620148,338.35873595,8.734e-05,2]
[419224412,1775024631633,500.0,8.734e-05,2]
[419224414,1775024633825,646.0,8.734e-05,2]
[419224415,1775024641219,300.0,8.734e-05,2]
[419224416,1775024643296,516.45149846,8.734e-05,2]
[419224417,1775024643346,300.0,8.734e-05,2]
[419224418,1775024643380,150.0,8.734e-05,2]
[419224419,1775024652859,500.0,8.734e-05,2]
[419224420,1775024670642,491.38912161,8.734e-05,2]
[419224424,1775024685459,243.1410115,8.734e-05,2]
[419224425,1775024685482,256.8589885,8.734e-05,2]
[419224426,1775024697667,500.0,8.734e-05,2]
[419224427,1775024701726,1200.0,8.734e-05,2]
[419224428,1775024706739,150.0,7.841e-05,2]
[419224429,1775024706806,264.08018043,8.712e-05,2]
[419224430,1775024706928,150.0,7.841e-05,2]
[419224431,1775024707058,150.0,7.841e-05,2]
[419224432,1775024707088,150.0,8.712e-05,2]
[419224433,1775024711278,500.0,8.734e-05,2]
[419224434,1775024713753,150.0,7.841e-05,2]
[419224435,1775024713783,150.0,8.712e-05,2]
[419224436,1775024720605,150.0,7.841e-05,2]
[419224437,1775024720643,150.0,8.277e-05,2]
[419224438,1775024720713,150.0,8.712e-05,2]
[419224439,1775024723739,500.0,8.734e-05,2]
[419224440,1775024726954,150.22908623,7.841e-05,2]
[419224441,1775024727023,150.0,7.841e-05,2]
[419224442,1775024727093,150.69192865,8.712e-05,2]
[419224443,1775024727165,150.0,7.841e-05,2]
[419224444,1775024727197,150.0,8.712e-05,2]
[419224445,1775024727524,150.01563451,7.841e-05,2]
[419224446,1775024745267,500.0,8.734e-05,2]
[419224447,1775024769516,500.0,8.734e-05,2]
[419224448,1775024769654,275.0,8.734e-05,2]
[419224450,1775024780869,500.0,8.734e-05,2]
[419224451,1775024784563,22764.3946352,8.73e-05,3]
[419224452,1775024792479,643.495991,8.734e-05,2]
[419224453,1775024804004,308.59549665,8.734e-05,2]
[419224454,1775024813772,512.84835981,8.734e-05,2]
[419224455,1775024822179,300.0,8.734e-05,2]
[419224456,1775024822432,150.0,8.734e-05,2]
[419224458,1775024825063,500.0,8.734e-05,2]
[419224459,1775024825360,338.19433422,8.635e-05,2]
[419224460,1775024825386,10000.01,8.635e-05,2]
[419224461,1775024825411,10000.01,8.635e-05,2]
[419224462,1775024825437,10000.01,8.635e-05,2]
[419224463,1775024825462,10000.01,8.635e-05,2]
[419224464,1775024825488,10000.01,8.635e-05,2]
[419224465,1775024825513,10000.01,8.635e-05,2]
[419224466,1775024825538,10000.01,8.635e-05,2]
[419224467,1775024825562,10000.01,8.635e-05,2]
[419224468,1775024825586,10000.01,8.635e-05,2]
[419224469,1775024881815,300.0,8.634e-05,2]
[419224470,1775024892783,1167.08,8.058e-05,2]
[419224474,1775024914255,173.53454621,8.634e-05,2]
[419224475,1775024914288,268.5476856,8.634e-05,2]
[419224476,1775024914320,288.34024796,8.634e-05,2]
[419224477,1775024914359,489.78983354,8.634e-05,2]
[419224478,1775024915832,500.0,8.634e-05,2]
[419224479,1775024920066,500.0,8.634e-05,2]
[419224480,1775024922237,500.0,8.634e-05,2]
[419224481,1775024922269,500.0,8.634e-05,2]
[419224482,1775024922299,500.0,8.634e-05,2]
[419224483,1775024922355,300.0,8.634e-05,2]
[419224484,1775024922396,500.0,8.634e-05,2]
[419224485,1775024927790,500.0,8.634e-05,2]
[419224486,1775024927849,500.0,8.634e-05,2]
[419224487,1775024927903,483.82434944,8.634e-05,2]
[419224488,1775024945533,418.10210295,8.634e-05,2]
[419224489,1775024957121,271.96,7.865e-05,2]
[419224490,1775024957171,500.0,8.634e-05,2]
[419224491,1775024966890,500.0,8.634e-05,2]
[419224492,1775024975686,500.0,8.634e-05,2]
[419224493,1775024987365,338.8312343,8.634e-05,2]
[419224494,1775024987387,161.1687657,8.634e-05,2]
[419224495,1775024999810,500.0,8.634e-05,2]
[419224496,1775025001774,300.0,8.634e-05,2]
[419224497,1775025001805,300.0,8.634e-05,2]
[419224498,1775025001883,1200.0,8.634e-05,2]
[419224499,1775025002331,300.0,8.634e-05,2]
[419224500,1775025002590,150.0,8.634e-05,2]
[419224501,1775025012907,500.0,8.634e-05,2]
[419224502,1775025019938,-4600.0,8.635e-05,2]
[419224503,1775025024572,500.0,8.634e-05,2]
[419224511,1775025031687,-378.35139607,8.635e-05,2]
[419224512,1775025031698,-538.66150014,8.635e-05,2]
[419224513,1775025031742,-415.46751662,8.635e-05,2]
[419224514,1775025031753,-5001.28675624,8.635e-05,2]
[419224515,1775025031763,-1430.66631438,8.635e-05,2]
[419224516,1775025031796,-16380.3368184,8.635e-05,2]
[419224517,1775025031807,-8216.17600012,8.635e-05,2]
[419224518,1775025031819,-104275.50760322,8.635e-05,2]
[419224519,1775025031903,-360.67904555,8.635e-05,2]
[419224535,1775025036225,546.09648494,8.634e-05,2]
[419224549,1775025040024,-3595.2502192,8.635e-05,2]
[419224553,1775025040036,-91668.99414752,8.635e-05,2]
[419224554,1775025040080,-5871.00585788,8.635e-05,2]
[419224555,1775025040137,-354.615,8.635e-05,2]
[419224556,1775025040149,-430.35,8.635e-05,2]
[419224557,1775025040160,-2166144.36749044,8.635e-05,2]
[419224558,1775025040170,-1500000.0,8.635e-05,2]
[419224559,1775025040180,-8690.30780307,8.635e-05,2]
[419224560,1775025040190,-1988.12723974,8.635e-05,2]
[419224561,1775025040201,-208.87794102,8.635e-05,2]
[419224562,1775025040212,-273.0,8.635e-05,2]
[419224563,1775025040222,-1537.32013125,8.635e-05,2]